fUST/lending_fUST_20250222
["ID","MTS","AMOUNT","RATE_DAILY","PERIOD"]
[353949010,1740165045515,-271.7349819,0.00014562,2]
[353949012,1740165045523,-1000.0,0.00014576,2]
[353949014,1740165045532,-281.9178694,0.00014584,2]
[353949016,1740165045542,-1000.0,0.00014589,2]
[353949018,1740165045551,-2127.69,0.000146,2]
[353949020,1740165045560,-522.03,0.000146,2]
[353949022,1740165045569,-1226.73,0.00014601,2]
[353949024,1740165045578,-500.0,0.00014602,2]
[353949026,1740165045588,-2733.86,0.00014602,2]
[353949028,1740165045597,-509.79,0.00014602,2]
[353949030,1740165045606,-909.18,0.00014602,2]
[353949032,1740165045617,-500.0,0.00014602,2]
[353949034,1740165045626,-500.0,0.00014602,2]
[353949036,1740165045635,-1527.58,0.00014602,2]
[353949038,1740165045643,-1082.2,0.00014602,2]
[353949040,1740165045652,-151.0,0.00014639,2]
[353949042,1740165045661,-1000.0,0.00014658,2]
[353949045,1740165045670,-669.661,0.00014671,2]
[353949047,1740165045680,-2200.0,0.00014671,2]
[353949049,1740165045689,-2127.69,0.00014682,2]
[353949051,1740165045698,-522.03,0.00014682,2]
[353949053,1740165045707,-151.0,0.00014683,2]
[353949055,1740165045716,-151.0,0.00014683,2]
[353949057,1740165045725,-1226.73,0.00014683,2]
[353949061,1740165045735,-151.0,0.00014684,2]
[353949064,1740165045744,-500.0,0.00014684,2]
[353949066,1740165045753,-2733.86,0.00014684,2]
[353949069,1740165045762,-509.79,0.00014684,2]
[353949072,1740165045771,-909.18,0.00014684,2]
[353949075,1740165045780,-500.0,0.00014684,2]
[353949078,1740165045789,-500.0,0.00014684,2]
[353949081,1740165045799,-1527.58,0.00014684,2]
[353949084,1740165045808,-1082.2,0.00014684,2]
[353949087,1740165045818,-394.38509047,0.00014707,2]
[353949090,1740165045827,-151.0,0.00014762,2]
[353949093,1740165045837,-522.03,0.00014762,2]
[353949097,1740165045846,-522.03,0.00014762,2]
[353949100,1740165045854,-38971.19439194,0.00014762,2]
[353949103,1740165045863,-2127.69,0.00014764,2]
[353949106,1740165045873,-1226.73,0.00014766,2]
[353949108,1740165045882,-522.03,0.00014766,2]
[353949110,1740165045891,-151.0,0.00014767,2]
[353949112,1740165045900,-151.0,0.00014767,2]
[353949114,1740165045909,-500.0,0.00014767,2]
[353949116,1740165045922,-2733.86,0.00014767,2]
[353949118,1740165045932,-509.79,0.00014767,2]
[353949120,1740165045942,-909.18,0.00014767,2]
[353949122,1740165045951,-500.0,0.00014767,2]
[353949124,1740165045961,-500.0,0.00014767,2]
[353949126,1740165045971,-1527.58,0.00014767,2]
[353949128,1740165045980,-1082.2,0.00014767,2]
[353949130,1740165045989,-335.0,0.0001477,2]
[353949132,1740165046000,-151.0,0.00014799,2]
[353949134,1740165046011,-160.84113595,0.000148,2]
[353949136,1740165046020,-160.84113595,0.000148,2]
[353949138,1740165046029,-160.84113595,0.000148,2]
[353949140,1740165046039,-160.84113595,0.000148,2]
[353949142,1740165046047,-160.84113595,0.000148,2]
[353949144,1740165046057,-160.84113595,0.000148,2]
[353949146,1740165046066,-160.84113595,0.000148,2]
[353949148,1740165046075,-160.84113595,0.000148,2]
[353949150,1740165046086,-160.84113595,0.000148,2]
[353949152,1740165046095,-160.84,0.000148,2]
[353949154,1740165046105,-171.63967578,0.000148,2]
[353949156,1740165046114,-171.63967578,0.000148,2]
[353949158,1740165046124,-171.63967578,0.000148,2]
[353949160,1740165046133,-171.63967578,0.000148,2]
[353949162,1740165046143,-171.63,0.000148,2]
[353949164,1740165046151,-151.0,0.000148,2]
[353949166,1740165046160,-151.0,0.000148,2]
[353949168,1740165046169,-151.0,0.000148,2]
[353949170,1740165046179,-109234.77974,0.000148,2]
[353949172,1740165046188,-30000.0,0.000148,2]
[353949174,1740165046197,-30000.0,0.000148,2]
[353949176,1740165046206,-255.65241636,0.00014827,2]
[353949178,1740165046215,-2127.69,0.00014847,2]
[353949181,1740165046225,-1226.73,0.00014848,2]
[353949182,1740165046234,-522.03,0.00014848,2]
[353949185,1740165046243,-522.03,0.00014848,2]
[353949187,1740165046252,-522.03,0.00014848,2]
[353949189,1740165046261,-522.03,0.00014848,2]
[353949190,1740165046270,-522.07985071,0.00014848,2]
[353949192,1740165046279,-2500.0,0.00014849,2]
[353949195,1740165046289,-151.0,0.00014849,2]
[353949197,1740165046298,-151.0,0.00014849,2]
[353949199,1740165046308,-500.0,0.00014849,2]
[353949200,1740165046317,-2733.86,0.00014849,2]
[353949202,1740165046325,-509.79,0.00014849,2]
[353949204,1740165046335,-909.18,0.00014849,2]
[353949206,1740165046345,-500.0,0.00014849,2]
[353949208,1740165046355,-500.0,0.00014849,2]
[353949210,1740165046365,-1527.58,0.00014849,2]
[353949212,1740165046375,-1082.2,0.00014849,2]
[353949214,1740165046384,-1000.0,0.0001486,2]
[353949216,1740165046394,-500.0,0.00014873,2]
[353949218,1740165046403,-500.0,0.00014873,2]
[353949220,1740165046413,-500.0,0.00014873,2]
[353949222,1740165046422,-500.0,0.00014873,2]
[353949224,1740165046431,-500.0,0.00014873,2]
[353949226,1740165046440,-202864.590945,0.0001489,2]
[353949228,1740165046449,-3507.92,0.000149,2]
[353949230,1740165046458,-151.0,0.000149,2]
[353949232,1740165046468,-151.0,0.000149,2]
[353949234,1740165046476,-151.0,0.000149,2]
[353949236,1740165046485,-579138.469137,0.000149,2]
[353949238,1740165046494,-1012.81760778,0.000149,2]
[353949240,1740165046503,-500.0,0.00014904,2]
[353949242,1740165046513,-281.91786938,0.00014913,2]
[353949244,1740165046522,-2127.69,0.00014929,2]
[353949246,1740165046530,-1226.73,0.0001493,2]
[353949248,1740165046539,-500.0,0.00014931,2]
[353949250,1740165046550,-2733.86,0.00014931,2]
[353949252,1740165046559,-509.79,0.00014931,2]
[353949254,1740165046568,-909.18,0.00014931,2]
[353949256,1740165046577,-500.0,0.00014931,2]
[353949258,1740165046588,-155.69,0.00014931,2]
[353949260,1740165046597,-1527.58,0.00014931,2]
[353949262,1740165046606,-1082.2,0.00014931,2]
[353949264,1740165046615,-151.0,0.00015,2]
[353949266,1740165046624,-151.0,0.00015,2]
[353949268,1740165046632,-1000.0,0.00015,2]
[353949270,1740165046642,-2127.69,0.00015011,2]
[353949272,1740165046650,-1226.73,0.00015012,2]
[353949274,1740165046659,-500.0,0.00015013,2]
[353949275,1740165046668,-2733.86,0.00015013,2]
[353949277,1740165046677,-509.79,0.00015013,2]
[353949279,1740165046686,-909.18,0.00015013,2]
[353949281,1740165046695,-500.0,0.00015013,2]
[353949283,1740165046704,-1527.58,0.00015013,2]
[353949285,1740165046713,-1082.2,0.00015013,2]
[353949287,1740165046722,-612.33135637,0.00015014,2]
[353949289,1740165046731,-155.0324637,0.00015076,2]
[353949291,1740165046740,-2127.69,0.00015093,2]
[353949293,1740165046748,-1226.73,0.00015094,2]
[353949295,1740165046757,-500.0,0.00015095,2]
[353949297,1740165046766,-2733.86,0.00015095,2]
[353949299,1740165046775,-509.79,0.00015095,2]
[353949301,1740165046783,-909.18,0.00015095,2]
[353949303,1740165046792,-251.46785445,0.00015095,2]
[353949305,1740165046801,-1527.58,0.00015095,2]
[353949307,1740165046810,-1082.2,0.00015095,2]
[353949309,1740165046819,-151.0,0.000151,2]
[353949311,1740165046831,-151.0,0.000151,2]
[353949313,1740165046841,-151.0,0.000151,2]
[353949315,1740165046850,-22626.47802629,0.00015107,2]
[353949317,1740165046859,-612.33135637,0.00015114,2]
[353949319,1740165046868,-2127.69,0.00015175,2]
[353949321,1740165046877,-1226.73,0.00015176,2]
[353949323,1740165046886,-500.0,0.00015178,2]
[353949325,1740165046895,-2733.86,0.00015178,2]
[353949327,1740165046904,-509.79,0.00015178,2]
[353949328,1740165046912,-909.18,0.00015178,2]
[353949330,1740165046924,-1527.58,0.00015178,2]
[353949332,1740165046933,-1082.2,0.00015178,2]
[353949334,1740165046942,-2000.0,0.000152,2]
[353949336,1740165046951,-151.0,0.000152,2]
[353949338,1740165046960,-151.0,0.000152,2]
[353949340,1740165046970,-587.0,0.00015203,2]
[353949342,1740165046979,-1403.0006229,0.00015205,2]
[353949344,1740165046988,-612.33135637,0.00015214,2]
[353949346,1740165046998,-281.91786938,0.00015242,2]
[353949348,1740165047008,-2127.69,0.00015258,2]
[353949350,1740165047017,-1226.73,0.00015259,2]
[353949352,1740165047026,-500.0,0.0001526,2]
[353949354,1740165047036,-2733.86,0.0001526,2]
[353949356,1740165047045,-509.79,0.0001526,2]
[353949358,1740165047054,-909.18,0.0001526,2]
[353949360,1740165047063,-1527.58,0.0001526,2]
[353949362,1740165047072,-1082.2,0.0001526,2]
[353949364,1740165047081,-612.33135637,0.00015314,2]
[353949366,1740165047092,-1500.0,0.00015322,2]
[353949368,1740165047101,-2127.69,0.0001534,2]
[353949370,1740165047109,-1226.73,0.00015341,2]
[353949371,1740165047118,-500.0,0.00015342,2]
[353949372,1740165047127,-2733.86,0.00015342,2]
[353949373,1740165047136,-509.79,0.00015342,2]
[353949374,1740165047145,-909.18,0.00015342,2]
[353949375,1740165047154,-1527.58,0.00015342,2]
[353949376,1740165047163,-1082.2,0.00015342,2]
[353949378,1740165047172,-151.0,0.000154,2]
[353949380,1740165047180,-612.33135637,0.00015414,2]
[353949382,1740165047190,-1041.51124019,0.00015421,2]
[353949384,1740165047199,-1000.0,0.00015421,2]
[353949385,1740165047208,-1000.0,0.00015421,2]
[353949386,1740165047217,-501.05661806,0.00015421,2]
[353949388,1740165047226,-1000.0,0.00015421,2]
[353949390,1740165047235,-2127.69,0.00015422,2]
[353949392,1740165047244,-1226.73,0.00015423,2]
[353949394,1740165047253,-500.0,0.00015424,2]
[353949396,1740165047262,-2733.86,0.00015424,2]
[353949398,1740165047271,-509.79,0.00015424,2]
[353949399,1740165047281,-909.18,0.00015424,2]
[353949400,1740165047290,-1527.58,0.00015424,2]
[353949401,1740165047299,-1082.2,0.00015424,2]
[353949402,1740165047308,-255.65241636,0.00015442,2]
[353949403,1740165047318,-151.0,0.000155,2]
[353949404,1740165047327,-2127.69,0.00015504,2]
[353949405,1740165047336,-1226.73,0.00015505,2]
[353949406,1740165047345,-542.23777918,0.00015506,2]
[353949407,1740165047355,-2733.86,0.00015506,2]
[353949408,1740165047365,-509.79,0.00015506,2]
[353949409,1740165047374,-909.18,0.00015506,2]
[353949410,1740165047384,-1527.58,0.00015506,2]
[353949411,1740165047393,-1082.2,0.00015506,2]
[353949412,1740165047402,-612.33135637,0.00015514,2]
[353949413,1740165047411,-281.91786938,0.00015571,2]
[353949414,1740165047421,-1500.0,0.00015578,2]
[353949415,1740165047430,-2127.69,0.00015586,2]
[353949416,1740165047439,-1226.73,0.00015587,2]
[353949417,1740165047448,-2734.06526247,0.00015589,2]
[353949418,1740165047458,-509.95420255,0.00015589,2]
[353949419,1740165047467,-909.24786375,0.00015589,2]
[353949420,1740165047475,-1527.78556142,0.00015589,2]
[353949421,1740165047484,-1082.22991509,0.00015589,2]
[353949422,1740165047494,-157.19325299,0.00015591,2]
[353949423,1740165047503,-612.33135637,0.00015614,2]
[353949424,1740165047512,-280.39856338,0.00015641,2]
[353949425,1740165047521,-2127.75438275,0.00015669,2]
[353949426,1740165047530,-1226.76709964,0.0001567,2]
[353949427,1740165047540,-151.0,0.000157,2]
[353949428,1740165047549,-612.33135637,0.00015714,2]
[353949429,1740165047559,-181.07233,0.00015775,2]
[353949430,1740165047567,-20109.0,0.000158,2]
[353949431,1740165047577,-612.33135637,0.00015814,2]
[353949432,1740165047586,-1000.0,0.00015815,2]
[353949433,1740165047595,-335.0,0.0001583,2]
[353949434,1740165047605,-1500.0,0.00015862,2]
[353949435,1740165047615,-500.0,0.00015873,2]
[353949436,1740165047624,-30000.0,0.000159,3]
[353949437,1740165047633,-30000.0,0.000159,3]
[353949438,1740165047642,-9510.38781592,0.000159,4]
[353949439,1740165047652,-187.64799195,0.000159,2]
[353949440,1740165047662,-187.64799195,0.000159,2]
[353949441,1740165047671,-187.64799195,0.000159,2]
[353949442,1740165047681,-187.64799195,0.000159,2]
[353949443,1740165047690,-187.64799195,0.000159,2]
[353949444,1740165047699,-187.64799195,0.000159,2]
[353949445,1740165047708,-187.64799195,0.000159,2]
[353949446,1740165047718,-187.64799195,0.000159,2]
[353949447,1740165047727,-187.64799195,0.000159,2]
[353949448,1740165047736,-187.64799195,0.000159,2]
[353949449,1740165047843,-187.64799195,0.000159,2]
[353949450,1740165047852,-187.64799195,0.000159,2]
[353949451,1740165047862,-187.64799195,0.000159,2]
[353949452,1740165047872,-187.64799195,0.000159,2]
[353949453,1740165047882,-187.64799195,0.000159,2]
[353949454,1740165047893,-187.64799195,0.000159,2]
[353949455,1740165047902,-187.64799195,0.000159,2]
[353949456,1740165047911,-187.64799195,0.000159,2]
[353949457,1740165047928,-187.64799195,0.000159,2]
[353949458,1740165047937,-187.64,0.000159,2]
[353949459,1740165047947,-154.03560646,0.000159,2]
[353949460,1740165047957,-154.03560646,0.000159,2]
[353949462,1740165047967,-154.03560646,0.000159,2]
[353949464,1740165047977,-154.03560646,0.000159,2]
[353949466,1740165047986,-154.03560646,0.000159,2]
[353949468,1740165047996,-154.03560646,0.000159,2]
[353949470,1740165048006,-154.03560646,0.000159,2]
[353949472,1740165048016,-154.03560646,0.000159,2]
[353949474,1740165048026,-154.03560646,0.000159,2]
[353949476,1740165048036,-154.03560646,0.000159,2]
[353949478,1740165048046,-154.03560646,0.000159,2]
[353949480,1740165048056,-154.03560646,0.000159,2]
[353949482,1740165048065,-154.03,0.000159,2]
[353949484,1740165048075,-281.91786938,0.000159,2]
[353949486,1740165048084,-612.33135637,0.00015914,2]
[353949488,1740165048094,-500.0,0.00015973,2]
[353949490,1740165048104,-14790.28368041,0.0001599,2]
[353949491,1740165048114,-1425515.99271165,0.00016,2]
[353949493,1740165048124,-700.0,0.00016,3]
[353949495,1740165048133,-334.25,0.00016,2]
[353949497,1740165048143,-199.0,0.00016,5]
[353949499,1740165048152,-51173.18007895,0.00016,2]
[353949501,1740165048163,-133296.51427419,0.00016,2]
[353949503,1740165048173,-9341.29664281,0.00016,2]
[353949505,1740165048183,-3000.0,0.00016,2]
[353949507,1740165048193,-3000.0,0.0001601,2]
[353949509,1740165048202,-612.33135637,0.00016014,2]
[353949510,1740165048211,-3000.0,0.0001602,2]
[353949511,1740165048220,-3000.0,0.0001603,2]
[353949513,1740165048230,-3000.0,0.0001604,2]
[353949515,1740165048239,-3000.0,0.0001605,2]
[353949517,1740165048248,-255.65241636,0.00016056,2]
[353949519,1740165048257,-3000.0,0.0001606,2]
[353949521,1740165048266,-3000.0,0.0001607,2]
[353949523,1740165048275,-3000.0,0.0001608,2]
[353949525,1740165048284,-3000.0,0.0001609,2]
[353949527,1740165048294,-3000.0,0.000161,2]
[353949529,1740165048303,-3000.0,0.0001611,2]
[353949531,1740165048312,-612.33135637,0.00016114,2]
[353949533,1740165048322,-3000.0,0.0001612,2]
[353949535,1740165048331,-500.0,0.0001612,2]
[353949537,1740165048340,-500.0,0.0001612,2]
[353949539,1740165048351,-150.18,0.0001612,2]
[353949541,1740165048361,-3000.0,0.0001613,2]
[353949543,1740165048371,-3000.0,0.0001614,2]
[353949545,1740165048380,-3000.0,0.0001615,2]
[353949547,1740165048390,-3000.0,0.0001616,2]
[353949549,1740165048399,-577.72,0.00016164,2]
[353949551,1740165048408,-3000.0,0.0001617,2]
[353949553,1740165048417,-3000.0,0.0001618,2]
[353949555,1740165048426,-3000.0,0.0001619,2]
[353949557,1740165048435,-2000.0,0.000162,2]
[353949559,1740165048445,-3000.0,0.000162,2]
[353949561,1740165048454,-84670.00221489,0.000162,2]
[353949563,1740165048463,-84670.00221486,0.000162,2]
[353949565,1740165048473,-84670.00221486,0.000162,2]
[353949567,1740165048482,-3000.0,0.0001621,2]
[353949569,1740165048492,-612.33135637,0.00016214,2]
[353949571,1740165048501,-3000.0,0.0001622,2]
[353949573,1740165048510,-3000.0,0.0001623,2]
[353949575,1740165048522,-3000.0,0.0001624,2]
[353949577,1740165048532,-3000.0,0.0001625,2]
[353949579,1740165048541,-3000.0,0.0001626,2]
[353949581,1740165048551,-3000.0,0.0001627,2]
[353949583,1740165048560,-500.0,0.00016274,2]
[353949585,1740165048570,-3000.0,0.0001628,2]
[353949587,1740165048579,-3000.0,0.0001629,2]
[353949589,1740165048591,-3000.0,0.000163,2]
[353949591,1740165048601,-3000.0,0.0001631,2]
[353949593,1740165048610,-612.33135637,0.00016314,2]
[353949595,1740165048620,-3000.0,0.0001632,2]
[353949597,1740165048630,-3000.0,0.0001633,2]
[353949599,1740165048639,-3000.0,0.0001634,2]
[353949601,1740165048649,-3000.0,0.0001635,2]
[353949603,1740165048659,-3000.0,0.0001636,2]
[353949605,1740165048670,-3000.0,0.0001637,2]
[353949607,1740165048680,-3000.0,0.0001638,2]
[353949609,1740165048690,-3000.0,0.0001639,2]
[353949611,1740165048700,-500.0,0.00016394,2]
[353949613,1740165048709,-500.0,0.00016394,2]
[353949615,1740165048719,-3000.0,0.000164,2]
[353949617,1740165048728,-3000.0,0.0001641,2]
[353949619,1740165048738,-612.33135637,0.00016414,2]
[353949621,1740165048748,-3000.0,0.0001642,2]
[353949623,1740165048758,-602.89340071,0.00016421,2]
[353949625,1740165048769,-1500.0,0.00016422,2]
[353949627,1740165048779,-1504.95281179,0.00016422,2]
[353949629,1740165048789,-1500.0,0.00016422,2]
[353949631,1740165048799,-3000.0,0.0001643,2]
[353949633,1740165048809,-500.0,0.00016438,3]
[353949635,1740165048820,-500.0,0.00016438,3]
[353949637,1740165048829,-500.0,0.00016438,3]
[353949639,1740165048841,-315.06052772,0.00016438,3]
[353949641,1740165048851,-787.24,0.00016438,2]
[353949643,1740165048862,-787.24,0.00016438,2]
[353949645,1740165048874,-787.24,0.00016438,2]
[353949647,1740165048884,-787.24,0.00016438,2]
[353949649,1740165048895,-787.24,0.00016438,2]
[353949651,1740165048906,-787.24,0.00016438,2]
[353949653,1740165048917,-787.24,0.00016438,2]
[353949655,1740165048930,-787.24,0.00016438,2]
[353949657,1740165048939,-787.24,0.00016438,2]
[353949659,1740165048950,-787.24,0.00016438,2]
[353949661,1740165048959,-787.24,0.00016438,2]
[353949663,1740165048970,-787.24,0.00016438,2]
[353949665,1740165048980,-787.24,0.00016438,2]
[353949667,1740165048990,-787.24,0.00016438,2]
[353949669,1740165048999,-787.24,0.00016438,2]
[353949671,1740165049010,-787.24,0.00016438,2]
[353949673,1740165049022,-787.24,0.00016438,2]
[353949676,1740165049032,-787.24,0.00016438,2]
[353949678,1740165049042,-787.24,0.00016438,2]
[353949679,1740165049053,-787.24,0.00016438,2]
[353949682,1740165049063,-787.24,0.00016438,2]
[353949683,1740165049073,-787.24,0.00016438,2]
[353949686,1740165049083,-787.24,0.00016438,2]
[353949687,1740165049095,-787.29574086,0.00016438,2]
[353949690,1740165049104,-500.0,0.00016438,2]
[353949692,1740165049115,-500.0,0.00016438,2]
[353949694,1740165049124,-500.0,0.00016438,2]
[353949696,1740165049133,-500.0,0.00016438,2]
[353949698,1740165049143,-500.0,0.00016438,2]
[353949700,1740165049153,-500.0,0.00016438,2]
[353949702,1740165049162,-500.0,0.00016438,2]
[353949703,1740165049171,-500.0,0.00016438,2]
[353949705,1740165049181,-500.0,0.00016438,2]
[353949707,1740165049191,-500.0,0.00016438,2]
[353949709,1740165049200,-500.0,0.00016438,2]
[353949711,1740165049209,-500.0,0.00016438,2]
[353949713,1740165049219,-500.0,0.00016438,2]
[353949715,1740165049229,-500.0,0.00016438,2]
[353949717,1740165049239,-500.0,0.00016438,2]
[353949719,1740165049248,-500.0,0.00016438,2]
[353949721,1740165049258,-500.0,0.00016438,2]
[353949724,1740165049268,-500.0,0.00016438,2]
[353949726,1740165049278,-500.0,0.00016438,2]
[353949728,1740165049287,-597.209391,0.00016438,2]
[353949730,1740165049297,-344.72,0.00016438,2]
[353949732,1740165049307,-344.72,0.00016438,2]
[353949733,1740165049316,-344.72,0.00016438,2]
[353949735,1740165049326,-344.72,0.00016438,2]
[353949738,1740165049335,-344.72,0.00016438,2]
[353949739,1740165049346,-344.72,0.00016438,2]
[353949741,1740165049356,-344.72,0.00016438,2]
[353949743,1740165049366,-344.72,0.00016438,2]
[353949746,1740165049375,-344.72,0.00016438,2]
[353949747,1740165049385,-344.72,0.00016438,2]
[353949750,1740165049395,-344.72,0.00016438,2]
[353949752,1740165049406,-344.72,0.00016438,2]
[353949754,1740165049416,-344.72,0.00016438,2]
[353949756,1740165049426,-344.72,0.00016438,2]
[353949758,1740165049436,-344.72,0.00016438,2]
[353949760,1740165049446,-344.72,0.00016438,2]
[353949762,1740165049456,-344.72,0.00016438,2]
[353949764,1740165049465,-344.72,0.00016438,2]
[353949766,1740165049475,-344.72,0.00016438,2]
[353949768,1740165049484,-344.72,0.00016438,2]
[353949770,1740165049493,-344.72,0.00016438,2]
[353949772,1740165049502,-344.72,0.00016438,2]
[353949774,1740165049511,-344.72,0.00016438,2]
[353949776,1740165049521,-344.8391142,0.00016438,2]
[353949778,1740165049531,-477.62065477,0.00016438,2]
[353949780,1740165049541,-943.62,0.00016438,2]
[353949782,1740165049550,-943.62,0.00016438,2]
[353949784,1740165049559,-943.62,0.00016438,2]
[353949786,1740165049568,-943.62,0.00016438,2]
[353949788,1740165049577,-943.62,0.00016438,2]
[353949790,1740165049587,-943.62,0.00016438,2]
[353949792,1740165049596,-943.62,0.00016438,2]
[353949794,1740165049606,-943.62,0.00016438,2]
[353949796,1740165049616,-943.62,0.00016438,2]
[353949798,1740165049625,-943.62,0.00016438,2]
[353949800,1740165049634,-943.62,0.00016438,2]
[353949802,1740165049643,-943.62,0.00016438,2]
[353949804,1740165049653,-943.62,0.00016438,2]
[353949806,1740165049662,-943.62,0.00016438,2]
[353949808,1740165049671,-943.62,0.00016438,2]
[353949810,1740165049679,-943.62,0.00016438,2]
[353949812,1740165049689,-943.62,0.00016438,2]
[353949814,1740165049699,-943.62,0.00016438,2]
[353949816,1740165049709,-943.62,0.00016438,2]
[353949818,1740165049718,-943.62,0.00016438,2]
[353949820,1740165049727,-943.62,0.00016438,2]
[353949822,1740165049736,-943.62,0.00016438,2]
[353949824,1740165049746,-943.62,0.00016438,2]
[353949826,1740165049755,-943.82093049,0.00016438,2]
[353949828,1740165049763,-500.0,0.00016438,2]
[353949830,1740165049772,-500.0,0.00016438,2]
[353949832,1740165049781,-467.663263,0.00016438,2]
[353949834,1740165049790,-467.663263,0.00016438,2]
[353949836,1740165049799,-467.663263,0.00016438,2]
[353949838,1740165049809,-467.663263,0.00016438,2]
[353949840,1740165049818,-467.663263,0.00016438,2]
[353949842,1740165049828,-467.663263,0.00016438,2]
[353949844,1740165049838,-467.663263,0.00016438,2]
[353949846,1740165049848,-467.663263,0.00016438,2]
[353949848,1740165049857,-467.663263,0.00016438,2]
[353949850,1740165049866,-467.663263,0.00016438,2]
[353949852,1740165049875,-467.663263,0.00016438,2]
[353949854,1740165049885,-467.663263,0.00016438,2]
[353949856,1740165049893,-467.663263,0.00016438,2]
[353949858,1740165049903,-467.663263,0.00016438,2]
[353949860,1740165049912,-467.663263,0.00016438,2]
[353949862,1740165049923,-467.663263,0.00016438,2]
[353949864,1740165049934,-467.663263,0.00016438,2]
[353949866,1740165049943,-467.663263,0.00016438,2]
[353949868,1740165049952,-467.663263,0.00016438,2]
[353949870,1740165049963,-467.663263,0.00016438,2]
[353949872,1740165049972,-3000.0,0.0001644,2]
[353949874,1740165049981,-3000.0,0.0001645,2]
[353949876,1740165049989,-3000.0,0.0001646,2]
[353949877,1740165049999,-10513.73039206,0.00016462,4]
[353949880,1740165050008,-3000.0,0.0001647,2]
[353949881,1740165050017,-3000.0,0.0001648,2]
[353949882,1740165050026,-3000.0,0.0001649,2]
[353949883,1740165050034,-28283.4,0.000165,2]
[353949884,1740165050043,-34465.97,0.000165,2]
[353949885,1740165050052,-3000.0,0.000165,2]
[353949886,1740165050061,-7438.69753278,0.000165,3]
[353949887,1740165050070,-3000.0,0.0001651,2]
[353949888,1740165050078,-612.33135637,0.00016514,2]
[353949889,1740165050087,-3000.0,0.0001652,2]
[353949890,1740165050096,-1000.0,0.00016521,2]
[353949891,1740165050105,-3000.0,0.0001653,2]
[353949892,1740165050114,-3000.0,0.0001654,2]
[353949893,1740165050124,-3000.0,0.0001655,2]
[353949894,1740165050133,-3000.0,0.0001656,2]
[353949895,1740165050142,-3000.0,0.0001657,2]
[353949896,1740165050151,-3963.182182,0.0001658,2]
[353949897,1740165050160,-84670.00221486,0.00016594,2]
[353949898,1740165050169,-612.33135637,0.00016614,2]
[353949899,1740165050178,-601.95662782,0.0001662,2]
[353949901,1740165050187,-1000.0,0.0001663,2]
[353949903,1740165050197,-500.0,0.00016668,2]
[353949905,1740165050206,-500.0,0.00016668,2]
[353949907,1740165050215,-255.65241636,0.00016671,2]
[353949909,1740165050223,-823.0,0.00016678,2]
[353949911,1740165050232,-466.42776588,0.00016697,2]
[353949913,1740165050241,-612.33135637,0.00016714,2]
[353949915,1740165050250,-396.0,0.00016771,2]
[353949917,1740165050259,-887.31782027,0.000168,7]
[353949919,1740165050268,-322.45,0.000168,15]
[353949921,1740165050277,-612.33135637,0.00016814,2]
[353949923,1740165050286,-2451.42546737,0.0001687,2]
[353949925,1740165050295,-1278.36348761,0.00016875,2]
[353949927,1740165050304,-358.0,0.0001689,2]
[353949929,1740165050313,-612.33135637,0.00016914,2]
[353949931,1740165050322,-500.0,0.00016942,2]
[353949933,1740165050331,-500.0,0.00016942,2]